bitfinex/quotes_ETHUSD_20251011
["timestamp","ask_amount","ask_price","bid_price","bid_amount"]
[1760159803512,0.1632,3807.5,3806.0,1.92]
[1760159803718,0.1632,3807.4,3806.6,2.62695416]
[1760159803916,0.1632,3807.3,3805.5,0.6336]
[1760159804143,0.1632,3807.3,3805.3,0.002]
[1760159804144,0.1632,3807.2,3806.2,2.62727286]
[1760159804416,2.78987664,3807.1,3806.0,2.62737043]
[1760159804643,2.62690678,3806.8,3805.5,2.62775401]
[1760159804851,0.1632,3806.7,3805.5,2.62775401]
[1760159805061,2.79022971,3806.6,3805.6,2.62769753]
[1760159805258,0.1632,3807.3,3805.4,0.4532]
[1760159805458,0.1632,3807.3,3805.5,2.62777558]
[1760159805638,0.1632,3807.3,3806.8,2.62683866]
[1760159805834,0.1632,3807.2,3806.8,2.62685192]
[1760159806039,0.1632,3808.0,3806.1,0.2356]
[1760159806234,0.1632,3808.0,3806.6,1.92]
[1760159806443,0.1632,3808.0,3806.5,1.92]
[1760159806647,0.1632,3808.0,3807.7,2.62624607]
[1760159806950,0.1632,3807.9,3807.5,2.62638724]
[1760159807152,0.1632,3807.9,3807.8,2.62618835]
[1760159807829,0.1632,3807.9,3807.6,2.62629992]
[1760159807830,0.1632,3808.7,3807.3,2.62647715]
[1760159808030,0.1312,3808.4,3807.9,2.62611938]
[1760159808226,0.1639,3808.3,3807.9,2.62611938]
[1760159808464,0.1639,3808.2,3807.8,0.1312]
[1760159808648,0.1312,3808.4,3807.8,0.1312]
[1760159808823,0.1639,3808.1,3807.8,2.75735019]
[1760159809027,0.1312,3808.4,3808.0,2.62605003]
[1760159809252,0.1312,3808.4,3807.8,0.1312]
[1760159809455,0.1312,3808.4,3808.0,2.62599026]
[1760159809777,0.1639,3808.3,3806.9,1.92]
[1760159809978,0.1639,3808.3,3808.2,2.6259125]
[1760159810178,0.2248,3809.0,3808.3,2.62583917]
[1760159810477,0.2248,3809.0,3808.1,2.62593196]
[1760159810676,2.1448,3809.0,3808.2,2.62590122]
[1760159810881,0.1639,3808.9,3808.2,2.62590122]
[1760159811082,0.1639,3808.8,3808.7,2.62556777]
[1760159811287,0.2242,3809.5,3808.1,0.2255]
[1760159811445,0.2242,3809.5,3808.4,2.6257746]
[1760159811446,0.1645,3809.4,3808.4,2.6257746]
[1760159811783,0.1645,3809.4,3808.1,2.62598146]
[1760159811969,0.1645,3809.4,3808.9,2.62537457]
[1760159812153,0.1645,3809.3,3808.9,2.62537457]
[1760159812354,0.1645,3809.2,3807.7,1.42411695]
[1760159812545,0.2242,3809.5,3809.4,2.62508531]
[1760159812744,0.1645,3809.5,3808.2,0.432]
[1760159812950,0.2142,3809.9,3808.3,2.62584355]
[1760159813188,0.1655,3810.3,3808.4,0.432]
[1760159813388,0.1655,3810.3,3808.2,2.85139118]
[1760159813389,0.1655,3810.2,3808.8,2.62549042]
[1760159813679,0.1655,3810.2,3809.3,2.62515277]
[1760159813680,0.1655,3810.1,3809.3,2.62515277]
[1760159813889,0.3771,3810.0,3809.1,2.62528992]
[1760159814088,0.3771,3810.0,3808.6,1.92]
[1760159814384,0.3771,3810.0,3809.5,2.62498613]
[1760159814561,0.3793,3809.9,3809.5,2.62498613]
[1760159814763,0.1528,3809.8,3809.5,2.62498613]
[1760159814975,0.1528,3809.7,3809.5,2.62498613]
[1760159815177,0.1528,3809.6,3809.5,2.6250164]
[1760159816184,0.1528,3810.2,3808.8,1.92]
[1760159816405,0.1528,3810.2,3809.8,2.62474944]
[1760159816676,2.62419785,3810.7,3808.7,0.432]
[1760159816677,0.1535,3810.1,3809.7,2.62487153]
[1760159816881,0.1535,3810.0,3809.5,2.62500047]
[1760159817077,0.1535,3810.0,3809.3,2.62510943]
[1760159817249,0.1535,3810.0,3808.7,1.92]
[1760159817451,0.1535,3810.0,3809.7,2.62483672]
[1760159817665,0.1535,3809.9,3809.7,2.62483672]
[1760159817865,0.1535,3809.8,3809.7,2.62483672]
[1760159818294,0.1535,3810.4,3808.7,0.6336]
[1760159818454,0.1535,3810.9,3810.3,2.62441777]
[1760159818783,0.1535,3810.9,3809.3,0.432]
[1760159818784,0.41159243,3810.7,3809.3,0.432]
[1760159818964,0.41159243,3810.7,3809.6,1.92]
[1760159819148,0.1535,3810.9,3809.5,2.6250164]
[1760159819149,0.1535,3810.9,3809.5,2.5536]
[1760159819357,0.1535,3810.9,3810.5,2.62429669]
[1760159819552,2.62465739,3811.5,3808.8,1.92]
[1760159819553,0.1535,3810.8,3808.8,1.92]
[1760159819882,0.1312,3810.3,3809.6,0.1312]
[1760159820287,0.1535,3810.2,3809.6,0.1312]
[1760159820458,0.1535,3810.2,3809.6,2.75609941]
[1760159820781,0.1535,3810.2,3809.6,0.1312]
[1760159821005,0.1535,3810.2,3809.8,2.62480518]
[1760159821288,0.1312,3810.3,3809.6,0.1312]
[1760159821289,0.1535,3810.1,3809.6,0.1312]
[1760159821592,0.1535,3810.0,3809.6,0.1312]
[1760159821757,0.2251,3809.7,3807.6,2.62632629]
[1760159821957,0.1542,3809.6,3809.1,2.6252367]
[1760159822155,0.3563,3809.7,3809.1,2.7564367]
[1760159822359,0.3563,3809.7,3809.1,0.1312]
[1760159822561,0.1542,3810.1,3808.7,0.6336]
[1760159822773,0.1542,3810.1,3809.8,2.62477799]
[1760159823089,0.001,3810.4,3809.9,2.62472603]
[1760159823460,0.1549,3810.3,3809.6,2.62493456]
[1760159823692,0.1312,3810.1,3809.6,2.62493456]
[1760159823991,0.223,3809.7,3808.3,2.62583307]
[1760159824290,0.223,3809.7,3806.5,2.6270206]
[1760159824291,0.1563,3809.6,3808.4,1.92]
[1760159824496,0.223,3809.7,3808.8,2.62549156]
[1760159824497,0.1563,3809.5,3808.8,2.62549156]
[1760159824819,0.1563,3809.5,3808.9,2.62541481]
[1760159824969,2.78144167,3809.4,3808.4,2.62571996]
[1760159825307,0.1563,3809.3,3807.3,0.432]
[1760159825465,2.62501599,3809.6,3806.9,2.62675961]
[1760159825466,0.1563,3809.2,3807.4,1.92]
[1760159825673,0.1563,3809.1,3806.6,0.432]
[1760159826010,2.62550795,3808.8,3807.5,2.62633052]
[1760159826208,2.62570434,3808.6,3806.7,2.62694722]
[1760159826410,0.1563,3808.7,3808.0,2.62599297]
[1760159826701,2.62529488,3809.1,3808.0,2.62599297]
[1760159826906,2.62557152,3808.7,3807.9,2.62610448]
[1760159827104,0.1563,3808.6,3807.9,2.62610448]
[1760159827397,2.62557152,3808.7,3808.0,2.62604749]
[1760159827398,0.1563,3808.5,3808.0,2.62604749]
[1760159827606,0.1563,3808.4,3807.9,2.6261131]
[1760159827807,0.1563,3808.3,3806.5,1.92]
[1760159828010,0.1563,3808.3,3807.7,1.92]
[1760159828301,0.1563,3808.3,3806.4,3.26071485]
[1760159828302,0.2229,3807.8,3806.1,0.79080452]
[1760159828473,0.157,3807.7,3806.7,2.6268811]
[1760159828676,2.84909289,3807.8,3806.7,2.6268811]
[1760159829004,2.78326366,3807.7,3806.7,2.6268811]
[1760159829203,0.157,3807.6,3806.7,2.6268811]
[1760159829402,0.157,3807.5,3806.8,1.92]
[1760159829601,0.157,3807.5,3805.7,0.432]
[1760159829602,2.78347374,3807.4,3805.3,2.62986035]
[1760159829809,2.78347374,3807.4,3805.7,2.62763749]
[1760159830017,0.157,3807.3,3805.4,2.62778012]
[1760159830324,2.6268471,3806.9,3805.3,0.002]
[1760159830491,2.6269114,3806.8,3805.8,2.62753229]
[1760159830686,1.34206156,3810.2,3805.4,2.62783191]
[1760159830687,2.62680985,3806.9,3805.4,2.62783191]
[1760159830917,2.5536,3807.7,3805.3,0.002]
[1760159831228,2.62682695,3806.9,3805.6,2.62768767]
[1760159831524,2.5536,3807.7,3806.1,2.62731601]
[1760159831727,2.62653677,3807.3,3805.4,2.62778189]
[1760159831885,1.92,3807.7,3806.0,2.62736221]
[1760159832087,2.62667462,3807.1,3806.1,2.62733359]
[1760159832313,2.62658559,3807.3,3805.7,1.92]
[1760159832619,1.92,3807.4,3805.7,4.54763749]
[1760159832823,0.6336,3808.1,3805.8,2.62756844]
[1760159833113,0.6336,3808.3,3806.6,2.62695578]
[1760159833301,1.92,3807.4,3806.5,2.62705261]
[1760159833506,1.92,3807.4,3805.5,0.002]
[1760159833507,1.92,3807.7,3805.6,2.62770653]
[1760159833704,2.62641627,3807.5,3806.5,2.62702298]
[1760159833904,0.1312,3807.0,3806.6,2.62695903]
[1760159834109,0.1312,3807.0,3806.7,2.62688652]
[1760159834313,0.1312,3807.0,3806.3,0.1312]
[1760159834521,0.1312,3806.5,3805.9,0.1312]
[1760159834894,2.62618835,3807.8,3805.5,0.002]
[1760159834895,2.62508531,3809.4,3805.7,1.92]
[1760159835094,2.6248193,3809.8,3805.7,1.92]
[1760159835095,13.9023732,3809.6,3807.3,2.6264762]
[1760159835413,2.62579011,3808.4,3807.3,2.6264762]
[1760159835716,2.62579011,3808.4,3806.0,1.92]
[1760159835885,2.62508531,3809.4,3806.0,2.5536]
[1760159836093,2.62610577,3808.0,3806.9,2.62674133]
[1760159836316,2.62610577,3808.0,3806.9,2.62674042]
[1760159836516,2.62610577,3808.0,3805.9,4.5474994]
[1760159836722,0.6336,3809.0,3807.4,2.6264586]
[1760159837016,2.62585752,3808.3,3806.6,2.62699059]
[1760159837218,2.5536,3808.8,3805.8,2.71085038]
[1760159837421,2.62630934,3807.7,3806.8,2.62684703]
[1760159837799,2.62630934,3807.7,3805.7,2.62761357]
[1760159837800,13.9023732,3808.6,3805.7,0.7909463]
[1760159838006,2.62668178,3807.1,3805.4,2.62778115]
[1760159838311,2.62668178,3807.1,3806.2,2.62726381]
[1760159838488,2.62668178,3807.1,3806.3,2.62722108]
[1760159838685,2.62666898,3807.2,3806.3,2.62716187]
[1760159838890,2.62654664,3807.3,3806.4,2.62712608]
[1760159839087,2.62654676,3807.3,3806.4,2.62708872]
[1760159839312,1.92,3808.5,3805.8,2.62952288]
[1760159839526,2.62645333,3807.5,3805.8,2.62952288]
[1760159839686,2.62647536,3807.4,3805.8,0.002]
[1760159839903,0.6336,3808.0,3805.8,0.002]
[1760159840104,2.62626101,3807.7,3805.8,0.002]
[1760159840330,0.41192905,3808.6,3805.8,0.002]
[1760159840528,2.62590921,3808.3,3807.2,2.62659556]
[1760159840850,2.62552671,3808.8,3806.3,0.6336]
[1760159841139,13.9023732,3810.6,3805.9,0.7908066]
[1760159841342,13.9023732,3810.6,3806.5,0.6336]
[1760159841343,0.41183152,3810.3,3806.5,0.6336]
[1760159841504,0.41183152,3810.3,3806.6,13.9023732]
[1760159841835,2.62433786,3810.5,3808.1,0.6336]
[1760159842154,2.6251301,3810.8,3808.3,2.62584332]
[1760159842155,2.62448694,3810.3,3808.3,2.62584332]
[1760159842433,2.62469838,3810.0,3808.6,2.62561331]
[1760159842635,2.62474439,3809.9,3808.5,2.62567909]
[1760159842835,0.6346,3810.4,3808.5,2.62567909]
[1760159843038,2.62474766,3809.9,3808.6,2.62562808]
[1760159843238,2.62501569,3809.6,3808.6,2.62562808]
[1760159843565,0.001,3809.8,3808.6,2.62562808]
[1760159843714,2.62582249,3809.8,3807.8,2.62617409]
[1760159843920,2.6250189,3809.5,3808.5,2.62564698]
[1760159844239,0.001,3809.8,3808.5,2.62564354]
[1760159844534,0.001,3809.8,3807.2,1.92]
[1760159844535,2.62502176,3809.5,3808.7,2.62556616]
[1760159844738,2.62502176,3809.5,3808.6,2.62563615]
[1760159844941,0.1312,3809.3,3808.7,0.1312]
[1760159845242,0.1312,3809.3,3807.4,2.62646425]
[1760159845243,0.001,3809.8,3805.4,2.6278202]
[1760159845425,0.1312,3808.6,3807.9,0.1312]
[1760159845636,2.62541782,3809.0,3807.3,2.62652903]
[1760159846004,2.62544843,3808.9,3808.1,2.62597738]
[1760159846205,2.62586513,3809.8,3807.9,2.62610971]
[1760159846206,2.62551896,3808.8,3807.9,2.62610971]
[1760159846431,2.62551896,3808.8,3808.0,2.62602777]
[1760159846643,2.62503652,3809.5,3807.0,0.6336]
[1760159846840,0.001,3809.8,3807.0,2.5536]
[1760159847019,0.001,3809.8,3808.2,2.62584676]
[1760159847364,0.6346,3809.8,3807.3,1.92]
[1760159847524,2.6255141,3808.8,3807.8,2.62615543]
[1760159847852,2.6255141,3808.8,3806.6,2.5536]
[1760159848149,2.62500669,3809.6,3808.0,2.62603325]
[1760159848150,2.62527961,3809.2,3808.0,2.62603325]
[1760159848355,2.62500669,3809.6,3807.0,1.92]
[1760159848525,2.62535598,3809.1,3808.1,2.62596108]
[1760159848725,0.001,3809.8,3807.1,3.26027121]
[1760159848925,2.62583505,3809.8,3808.8,2.6254732]
[1760159849126,0.001,3809.8,3806.7,0.6336]
[1760159849327,0.001,3809.8,3809.0,2.6253005]
[1760159849546,0.001,3809.8,3809.0,2.62529994]
[1760159849747,0.001,3809.8,3807.4,0.6336]
[1760159850056,0.001,3809.8,3807.4,1.92]
[1760159850057,2.62494187,3809.7,3807.4,1.92]
[1760159850257,2.62498704,3809.6,3808.8,2.62549597]
[1760159850444,0.001,3809.8,3808.1,2.62598107]
[1760159850445,2.62487867,3809.7,3808.1,2.62598107]
[1760159850627,2.62496178,3809.6,3808.7,2.62550139]
[1760159850828,2.62496178,3809.6,3808.8,2.62549779]
[1760159851029,0.001,3809.8,3806.9,1.92]
[1760159851252,2.62517053,3809.3,3808.5,2.62563674]
[1760159851441,0.001,3809.8,3808.3,2.62578206]
[1760159851739,0.001,3809.8,3808.5,2.6256374]
[1760159851740,2.62509262,3809.4,3808.5,2.6256374]
[1760159852256,0.001,3809.8,3807.1,0.6336]
[1760159852257,0.001,3809.8,3808.0,2.62600705]
[1760159852455,0.001,3809.8,3809.2,2.62517784]
[1760159852659,0.001,3809.8,3809.1,2.62526394]
[1760159852953,0.001,3809.8,3807.6,0.6336]
[1760159853157,0.001,3809.8,3807.0,1.92]
[1760159853158,0.001,3809.8,3809.3,2.62513126]
[1760159853953,0.001,3809.8,3809.1,2.62528887]
[1760159853954,0.001,3809.8,3808.2,2.5536]
[1760159854156,0.001,3809.8,3808.3,2.62584355]
[1760159854331,0.001,3809.8,3808.8,2.62549186]
[1760159854532,0.001,3809.8,3808.1,0.6336]
[1760159854734,0.001,3809.8,3809.4,2.62502173]
[1760159855331,0.001,3809.8,3809.1,2.62528317]
[1760159855531,0.001,3809.8,3809.3,0.1312]
[1760159855748,0.001,3809.8,3807.8,1.42402531]
[1760159855749,0.1312,3809.7,3809.1,0.1312]
[1760159855953,2.62508646,3809.4,3808.6,2.62560114]
[1760159856168,0.1312,3809.5,3809.0,2.62535178]
[1760159856470,0.1312,3809.5,3808.9,2.62542482]
[1760159856633,0.1312,3809.5,3809.0,2.62534426]
[1760159857053,0.1312,3809.5,3809.0,2.62534781]
[1760159857336,0.001,3809.8,3809.3,0.1312]
[1760159857535,0.001,3809.8,3809.4,2.62502613]
[1760159857768,0.001,3809.8,3809.5,2.7562102]
[1760159858066,0.001,3809.8,3809.5,0.1312]
[1760159858231,0.001,3809.8,3808.1,0.6336]
[1760159858438,0.001,3809.8,3809.6,2.6248836]
[1760159858751,0.001,3809.8,3809.7,2.62487859]
[1760159858956,0.001,3809.8,3809.7,2.75607859]
[1760159859830,0.001,3809.8,3808.6,0.6336]
[1760159859831,0.001,3809.8,3809.4,2.62505893]
[1760159860166,0.001,3809.8,3808.4,2.62572726]
[1760159860367,0.001,3809.8,3809.4,2.6250642]
[1760159860569,0.001,3809.8,3808.5,1.92]
[1760159860748,0.001,3809.8,3809.7,2.62487859]
[1760159861939,0.001,3809.8,3809.7,3.25847859]
[1760159863477,0.001,3809.8,3809.1,0.10534979]
[1760159863664,0.001,3809.8,3806.5,3.280558]
[1760159863837,0.001,3809.8,3809.7,2.62487859]
[1760159864163,0.001,3809.8,3809.4,2.62507392]
[1760159864338,0.001,3809.8,3809.7,2.62487859]
[1760159866170,0.001,3809.8,3809.7,3.25847859]
[1760159868233,0.001,3809.8,3809.7,2.62487859]
[1760159869268,0.001,3809.8,3809.7,3.25847859]
[1760159869972,0.001,3809.8,3809.7,5.30967859]
[1760159870975,0.001,3810.8,3810.7,3.25778978]
[1760159871477,0.001,3810.8,3810.7,5.30898978]
[1760159872463,0.001,3810.8,3810.7,4.67538978]
[1760159872948,0.001,3810.8,3810.7,0.1312]
[1760159873452,0.001,3810.8,3808.5,0.10535673]
[1760159873776,1.92,3810.7,3807.9,2.62610221]
[1760159873949,2.62478368,3809.9,3808.8,2.62549108]
[1760159874146,2.62496156,3809.6,3807.0,0.79046696]
[1760159874349,2.62496156,3809.6,3808.6,2.62562588]
[1760159874679,2.62481346,3809.8,3808.6,2.62562588]
[1760159874680,2.62503717,3809.5,3808.6,2.62559442]
[1760159874883,1.92,3810.3,3807.0,2.62674021]
[1760159875058,2.62508054,3809.5,3808.5,2.62564141]
[1760159875258,2.62508054,3809.5,3808.3,2.62583286]
[1760159875259,0.4647,3809.4,3806.7,2.62694722]
[1760159875460,0.4647,3809.3,3806.6,0.4566]
[1760159875659,2.62529206,3809.1,3806.6,0.4566]
[1760159875980,2.62576207,3808.5,3806.1,0.6855]
[1760159876176,0.1875,3809.2,3807.5,2.62635019]
[1760159876177,2.62564245,3808.6,3807.5,2.62635019]
[1760159876481,0.188,3807.6,3807.5,2.62635019]
[1760159876981,0.4267,3807.6,3807.5,1.92]
[1760159877178,0.4267,3807.6,3805.8,0.002]
[1760159877378,0.4267,3807.6,3807.3,2.62647834]
[1760159877680,0.2387,3807.5,3807.1,1.92]
[1760159877881,0.2387,3807.4,3806.7,0.6336]
[1760159878182,0.2387,3807.3,3805.8,0.002]
[1760159878380,0.2387,3807.3,3806.8,2.62681063]
[1760159878681,0.2387,3807.2,3806.5,2.62708423]
[1760159878984,0.2387,3807.2,3805.8,0.002]
[1760159878985,0.2387,3807.2,3807.0,2.6267173]
[1760159879185,0.2387,3807.2,3807.1,2.62667121]
[1760159879347,0.2387,3807.2,3806.2,0.6336]
[1760159879553,0.2387,3807.2,3806.3,1.92]
[1760159879895,0.2387,3807.2,3805.8,0.6356]
[1760159880192,1.92,3809.5,3807.8,2.62612643]
[1760159880379,1.92,3809.5,3807.0,2.62667421]
[1760159880380,0.189,3807.7,3807.6,2.62632629]
[1760159880680,0.4267,3807.7,3807.6,2.62632629]
[1760159880851,0.4267,3807.7,3807.2,2.62660171]
[1760159880852,0.2373,3808.4,3808.3,2.62584355]
[1760159881281,14.55734402,3810.3,3807.9,2.62611938]
[1760159881480,17.18186639,3810.3,3807.6,0.6336]
[1760159881790,2.62495173,3809.6,3808.6,2.6256326]
[1760159882080,0.2373,3809.1,3808.9,2.62536857]
[1760159882382,0.2373,3809.0,3807.9,1.92]
[1760159882583,1.92,3810.2,3807.9,1.92]
[1760159882584,0.2373,3808.9,3808.8,2.62549884]
[1760159882764,0.2373,3808.9,3807.4,2.5536]
[1760159882959,0.2373,3808.8,3808.3,2.625775]
[1760159883180,2.6251656,3809.3,3808.2,2.62586873]
[1760159883369,0.2373,3808.7,3808.4,2.62576396]
[1760159883686,2.81273004,3809.2,3808.5,2.75690565]
[1760159883687,0.2373,3808.6,3808.5,2.75690565]
[1760159884091,0.2373,3808.6,3808.5,0.1312]
[1760159884257,0.2373,3808.6,3805.5,2.62971615]
[1760159884457,0.2373,3808.6,3807.1,2.62666624]
[1760159884656,0.2373,3808.6,3807.2,2.62660222]
[1760159884862,0.2373,3808.6,3808.4,2.62571292]
[1760159885064,0.2373,3808.5,3808.4,2.62571292]
[1760159885270,0.2373,3808.5,3808.2,2.62590353]
[1760159885556,0.2373,3808.4,3807.9,2.62611773]
[1760159885763,2.81273931,3809.2,3808.2,2.62590874]
[1760159885764,0.2373,3808.3,3808.2,2.62590874]
[1760159886153,0.2373,3808.3,3807.2,1.92]
[1760159886356,0.2373,3808.3,3806.2,3.08389189]
[1760159886357,0.2373,3808.3,3808.2,2.6259125]
[1760159886779,0.2373,3808.3,3807.5,2.62639383]
[1760159886976,0.2373,3808.3,3806.3,2.62722328]
[1760159886977,0.4249,3808.2,3808.0,2.62603528]
[1760159887180,0.1875,3809.2,3808.0,2.62603528]
[1760159887181,0.4249,3808.1,3808.0,2.62605042]
[1760159888178,0.1984,3808.7,3808.0,2.62605042]
[1760159888377,0.1984,3808.7,3808.6,2.62563671]
[1760159888569,0.1984,3808.7,3807.3,2.62650672]
[1760159888570,0.1984,3808.7,3807.7,2.5536]
[1760159888773,0.1984,3808.7,3808.6,2.62563671]
[1760159889394,0.1875,3809.2,3808.8,2.62544737]
[1760159889689,0.1875,3809.2,3808.5,2.62569106]
[1760159889868,0.1875,3809.2,3808.7,2.62556276]
[1760159890073,0.1875,3809.2,3808.3,2.62578367]
[1760159890074,0.1984,3809.1,3808.3,2.62578367]
[1760159890389,0.1984,3809.0,3808.6,2.62560121]
[1760159890592,0.1984,3808.9,3807.8,1.92]
[1760159890797,0.1984,3808.8,3807.8,1.92]
[1760159891095,0.1984,3808.7,3808.6,2.62563671]
[1760159892477,0.3859,3809.2,3809.1,2.62529206]
[1760159892714,0.3859,3809.2,3809.0,2.62534499]
[1760159892880,0.1875,3809.2,3809.1,2.62529206]
[1760159893476,0.3859,3809.2,3809.1,2.62529206]
[1760159893877,0.3859,3809.2,3808.1,0.6336]
[1760159894082,0.1984,3809.1,3808.9,2.62542619]
[1760159894383,0.1875,3809.2,3809.1,2.62529206]
[1760159894586,0.1875,3809.2,3809.0,2.75654352]
[1760159894785,0.1984,3809.1,3809.0,2.75654352]
[1760159896383,0.1984,3809.1,3809.0,0.1312]
[1760159897215,0.1984,3809.1,3808.4,2.62572127]
[1760159897514,0.1984,3809.0,3808.7,0.1312]
[1760159898290,2.82381131,3809.0,3808.7,0.1312]
[1760159898498,0.1984,3808.9,3808.5,0.1312]
[1760159898702,0.1875,3809.2,3808.7,2.62556777]
[1760159898703,0.1984,3808.8,3808.7,2.62556777]
[1760159899097,0.1875,3809.2,3809.1,2.62529206]
[1760159899507,0.1875,3809.2,3809.1,2.75649206]
[1760159899893,0.3859,3809.2,3809.1,2.75649206]
[1760159900819,0.384,3809.6,3809.1,0.1312]
[1760159901020,0.384,3809.5,3809.4,2.75628317]
[1760159901223,2.7559322,3810.0,3809.4,0.1312]
[1760159901422,0.2287,3810.1,3809.4,2.62508531]
[1760159901423,0.384,3809.5,3809.4,2.62508531]
[1760159901811,0.6127,3810.1,3809.9,2.62469643]
[1760159902010,0.384,3810.0,3809.9,2.62469643]
[1760159903026,0.384,3810.0,3807.7,2.62625732]
[1760159903222,0.2287,3810.1,3808.0,1.92]
[1760159903223,0.3863,3809.9,3808.0,1.92]
[1760159903521,2.78375232,3809.8,3808.9,2.62542819]
[1760159903701,2.62488039,3809.7,3808.9,2.62542819]
[1760159903902,0.1589,3809.6,3808.2,0.6336]
[1760159904221,0.1589,3809.5,3809.1,2.62528861]
[1760159904411,0.1589,3809.4,3809.0,2.62535756]
[1760159904615,0.1589,3809.3,3809.2,2.62516369]
[1760159904812,0.1589,3809.3,3809.1,2.6252908]
[1760159905013,0.2274,3809.9,3809.2,2.62520541]
[1760159905626,0.1589,3809.8,3809.2,2.62520541]
[1760159905789,0.1589,3809.7,3809.6,2.6249475]
[1760159906194,0.2274,3809.9,3809.8,2.6248097]
[1760159906390,0.2287,3810.1,3810.0,2.62467191]
[1760159906594,0.3853,3810.0,3808.4,0.4683]
[1760159906912,0.3853,3810.0,3809.8,2.62475673]
[1760159907097,0.3853,3809.9,3809.1,1.92]
[1760159907295,0.2274,3810.5,3807.6,0.002]
[1760159907296,0.2274,3809.2,3807.6,0.002]
[1760159907517,0.1601,3809.1,3807.6,0.6356]
[1760159907692,2.62536514,3809.0,3807.6,0.002]
[1760159907894,0.1601,3809.1,3807.6,0.002]
[1760159908090,0.1601,3808.9,3808.5,2.62566175]
[1760159908320,0.1601,3808.8,3808.4,2.62576746]
[1760159908494,0.1601,3808.7,3808.4,2.62576746]
[1760159908692,0.1601,3808.6,3808.5,2.62570565]
[1760159908899,0.2274,3809.2,3808.0,2.62599474]
[1760159909124,0.2274,3809.2,3808.7,2.62550263]
[1760159909512,0.1601,3809.1,3808.1,1.92]
[1760159909715,0.2274,3809.2,3808.0,2.62599474]
[1760159909716,0.1601,3809.0,3808.7,2.62555307]
[1760159910027,0.1601,3808.9,3808.7,2.62555307]
[1760159910324,0.1601,3808.8,3808.7,2.62555307]
[1760159911196,0.1601,3808.8,3808.2,2.62589816]
[1760159911495,0.1601,3808.7,3808.5,0.1312]
[1760159911906,0.1601,3808.7,3808.4,2.62576689]
[1760159912093,0.1601,3808.6,3808.4,2.62576689]
[1760159912317,0.1601,3808.5,3808.1,2.62597227]
[1760159912513,0.1601,3808.4,3808.1,2.62596223]
[1760159912720,0.1601,3808.3,3808.1,2.62596223]
[1760159913020,2.85264292,3809.2,3808.1,2.62596223]
[1760159913021,0.1601,3808.2,3808.1,2.62596223]
[1760159913424,0.1601,3808.8,3808.7,2.62556777]
[1760159914302,0.2274,3809.2,3809.0,2.62531667]
[1760159914508,0.2274,3809.2,3809.1,2.62529206]
[1760159914935,0.2274,3809.7,3808.5,1.92]
[1760159915138,0.001,3810.4,3809.9,2.62468755]
[1760159915139,0.1608,3810.0,3809.9,2.62468755]
[1760159915546,0.1618,3810.4,3809.2,0.6336]
[1760159915837,0.1618,3810.4,3810.3,2.62446526]
[1760159916149,0.001,3810.4,3810.3,2.62446526]
[1760159919651,0.1618,3810.4,3809.5,2.62497673]
[1760159919852,0.1608,3810.3,3810.2,2.62452386]
[1760159920859,0.001,3810.4,3810.3,2.62446526]
[1760159921357,0.001,3810.4,3809.5,0.6336]
[1760159921563,0.001,3810.4,3809.6,1.92]
[1760159921770,0.1608,3810.3,3809.4,2.5536]
[1760159921980,0.001,3810.4,3808.4,0.4683]
[1760159922149,0.001,3810.4,3810.0,2.75587117]
[1760159922454,0.1608,3810.3,3810.0,2.75587117]
[1760159922654,0.1608,3810.2,3810.0,0.1312]
[1760159923425,2.62473807,3810.0,3807.9,2.62611938]
[1760159923642,2.62473807,3810.0,3809.4,0.1312]
[1760159923643,0.3876,3809.9,3809.4,0.1312]
[1760159923872,2.6248097,3809.8,3808.8,2.62548126]
[1760159924026,2.7562269,3809.5,3808.9,0.1312]
[1760159924338,0.1615,3809.4,3808.9,0.1312]
[1760159924944,2.78658584,3809.4,3808.9,0.1312]
[1760159925266,0.1615,3809.4,3808.9,0.1312]
[1760159925430,2.78658878,3809.4,3808.9,0.1312]
[1760159925633,0.1615,3809.3,3808.9,0.1312]
[1760159926227,2.78665789,3809.3,3808.9,0.1312]
[1760159926428,0.1615,3809.2,3808.9,0.1312]
[1760159927138,0.1312,3809.5,3808.9,0.1312]
[1760159927440,0.1615,3809.1,3809.0,2.62536098]
[1760159928250,0.1615,3809.7,3809.5,2.62495805]
[1760159928426,0.1615,3809.6,3808.7,2.62556777]
[1760159928630,0.1615,3809.6,3809.4,2.62503403]
[1760159928858,0.2261,3809.9,3808.6,0.6336]
[1760159928859,0.1615,3809.5,3808.6,0.6336]
[1760159929059,0.2261,3809.9,3807.4,1.2588232]
[1760159929060,2.78659151,3809.4,3807.4,1.2588232]
[1760159929263,2.78659151,3809.4,3807.1,0.4683]
[1760159929264,0.1615,3809.4,3807.1,0.4683]
[1760159929468,2.78659267,3809.4,3808.2,2.62590195]
[1760159929650,2.62550589,3808.8,3808.1,1.92]
[1760159929835,0.1615,3808.7,3807.4,2.62643917]
[1760159930049,0.1615,3808.7,3807.7,2.62625732]
[1760159930248,0.1615,3808.6,3807.8,2.62613071]
[1760159930554,0.1615,3808.5,3808.0,2.62602522]
[1760159930761,0.1615,3808.5,3808.2,2.62590825]
[1760159930958,2.62537631,3809.0,3808.5,0.002]
[1760159931283,2.62531269,3809.1,3808.5,0.002]
[1760159931444,0.2261,3809.9,3808.5,0.002]
[1760159931445,2.62549884,3808.8,3808.5,0.002]
[1760159931650,4.54563671,3808.6,3808.5,0.002]
[1760159932379,5.17923671,3808.6,3808.5,0.002]
[1760159933388,5.5911612,3808.6,3808.5,0.002]
[1760159934078,4.9575612,3808.6,3808.5,0.002]
[1760159935854,4.54563671,3808.6,3808.5,0.002]
[1760159936051,2.62563671,3808.6,3808.5,0.002]
[1760159936459,2.62465611,3810.1,3808.5,0.002]
[1760159936781,2.62563671,3808.6,3808.5,0.002]
[1760159936978,2.6255813,3808.7,3808.5,0.002]
[1760159937392,2.62563671,3808.6,3808.5,0.002]